Workbook

Sheet Invoice
B2: The Blue Door Book Store
B3: GST INVOICE
B4: Invoice No | D4: 2 | E4: State Code | G4: ON | I4: Date | K4: =TODAY() -> 2022-08-29
B5: SHIP TO | H5: BILL FROM
B6: =IFERROR(VLOOKUP($C$9,Customer!$B$5:$E$10,2,FALSE),"") -> Z | H6: The Blue Door Book Store
B7: =IFERROR(VLOOKUP($C$9,Customer!$B$5:$E$10,3,FALSE),"") -> Kingston | H7: Ottawa, Ontario
B8: =IFERROR(VLOOKUP($C$9,Customer!$B$5:$E$10,4,FALSE),"") -> +14378863136 | H8: Contect Number: +14378862659
B9: GSTIN | C9: ONFSDCXXXX5D1ZR | H9: GSTIN | I9: ONAACXXXX5D1ET
B11: Serial | C11: HSN Code | D11: Book Name | E11: Qty | F11: Unit Price | G11: Amount | H11: Taxable Amount | I11: CGST | K11: SGST
I12: Rate | J12: Amount | K12: Rate | L12: Amount
B13: 1 | C13: 801 | D13: =IFERROR(VLOOKUP(C13,Product!B5:F9,2,FALSE),"") -> Divergent | E13: 50 | F13: =IFERROR(VLOOKUP(C13,Product!B5:F9,3,FALSE),"") -> 10 | G13: =E13*F13 -> 500 | H13: =J13+L13 -> 35 | I13: =IFERROR(VLOOKUP(C13,Product!B5:F9,4,FALSE),"") -> 0.03 | J13: =G13*I13 -> 15 | K13: =IFERROR(VLOOKUP(C13,Product!B5:F9,5,FALSE),"") -> 0.04 | L13: =G13*K13 -> 20
B14: 2 | C14: 810 | D14: =IFERROR(VLOOKUP(C14,Product!B6:F10,2,FALSE),"") -> Speak | E14: 45 | F14: =IFERROR(VLOOKUP(C14,Product!B6:F10,3,FALSE),"") -> 12 | G14: =E14*F14 -> 540 | H14: =J14+L14 -> 32.4 | I14: =IFERROR(VLOOKUP(C14,Product!B6:F10,4,FALSE),"") -> 0.02 | J14: =G14*I14 -> 10.8 | K14: =IFERROR(VLOOKUP(C14,Product!B6:F10,5,FALSE),"") -> 0.04 | L14: =G14*K14 -> 21.6
B15: 3 | C15: 807 | D15: =IFERROR(VLOOKUP(C15,Product!B7:F11,2,FALSE),"") -> Dawn | E15: 75 | F15: =IFERROR(VLOOKUP(C15,Product!B7:F11,3,FALSE),"") -> 8 | G15: 600 | H15: 66 | I15: =IFERROR(VLOOKUP(C15,Product!B7:F11,4,FALSE),"") -> 0.05 | J15: 30 | K15: =IFERROR(VLOOKUP(C15,Product!B7:F11,5,FALSE),"") -> 0.06 | L15: 36
B16: 4 | C16: 808 | D16: =IFERROR(VLOOKUP(C16,Product!B8:F12,2,FALSE),"") -> Vicious | E16: 60 | F16: =IFERROR(VLOOKUP(C16,Product!B8:F12,3,FALSE),"") -> 7 | G16: 420 | H16: 33.6 | I16: =IFERROR(VLOOKUP(C16,Product!B8:F12,4,FALSE),"") -> 0.04 | J16: 16.8 | K16: =IFERROR(VLOOKUP(C16,Product!B8:F12,5,FALSE),"") -> 0.04 | L16: 16.8
B17: 5 | C17: 809 | D17: =IFERROR(VLOOKUP(C17,Product!B9:F13,2,FALSE),"") -> Riggs | E17: 40 | F17: =IFERROR(VLOOKUP(C17,Product!B9:F13,3,FALSE),"") -> 9 | G17: 360 | H17: 39.6 | I17: =IFERROR(VLOOKUP(C17,Product!B9:F13,4,FALSE),"") -> 0.05 | J17: 18 | K17: =IFERROR(VLOOKUP(C17,Product!B9:F13,5,FALSE),"") -> 0.06 | L17: 21.6
B18: Total Amount
B19: Amount | G19: =SUM(G13:G17) -> 2420
B20: CGST | G20: =SUM(J13:J17) -> 90.6
B21: SGST | G21: =SUM(L13:L17) -> 116
B22: Total Amount | G22: =SUM(G19:L21) -> 2626.6
B23: Bank Details
B24: A/C Name | D24: Michael James | I24: Sign…......................................
B25: A/C No. | D25: 0034567
B26: Terms & Conditions:-
U28: l

Sheet Product
B2: Product Details
B4: HSN Code | C4: Book Name | D4: Unit Price | E4: CGST | F4: SGST
B5: 801 | C5: Divergent | D5: 10 | E5: 0.03 | F5: 0.04
B6: 810 | C6: Speak | D6: 12 | E6: 0.02 | F6: 0.04
B7: 807 | C7: Dawn | D7: 8 | E7: 0.05 | F7: 0.06
B8: 808 | C8: Vicious | D8: 7 | E8: 0.04 | F8: 0.04
B9: 809 | C9: Riggs | D9: 9 | E9: 0.05 | F9: 0.06

Sheet Customer
B2: Company Details
B4: GSTIN | C4: Company Name | D4: Area | E4: Contact No
B5: ONAAACXXXX5D1Z4 | C5: X | D5: Windsor | E5: +14378863164
B6: ONXCACXXXX5D1ZY | C6: Y | D6: Toronto | E6: +14378861224
B7: ONFSDCXXXX5D1ZR | C7: Z | D7: Kingston | E7: +14378863136
B8: ONAAACXXXX5D1E5 | C8: A | D8: Thunder Bay | E8: +14378862847
B9: ONAAACXXXX5D169 | C9: B | D9: Ottawa | E9: +14378863124
B10: ONAAACXXXX5D1G6 | C10: C | D10: Sarnia | E10: +14378862656
